[Event "Velammal AICF Women GM 2024"]
[Site "Chennai"]
[Date "2024.03.19"]
[Round "3.1"]
[White "Mahalakshmi, M."]
[Black "Bommini Mounika Akshaya"]
[Result "1/2-1/2"]
[ECO "D50"]
[WhiteElo "2242"]
[BlackElo "2134"]
[Annotator "TA"]
[PlyCount "131"]
[EventDate "2024.03.18"]
[EventType "tourn"]
[EventCountry "IND"]
[SourceTitle "playchess.com"]
[Source "ChessBase"]
[SourceQuality "1"]
[TimeControl "5400+30"]

{[%evp 9,131,13,13,6,40,29,35,0,37,32,41,32,31,33,55,17,66,79,56,47,60,78,97,0,0,0,0,0,0,-4,0,0,0,0,0,0,0,0,0,0,0,0,5,8,6,5,12,5,14,3,1,0,8,6,6,6,6,6,6,3,6,6,8,6,6,6,6,6,6,6,10,6,6,6,6,6,6,6,6,6,6,6,6,6,6,6,6,6,6,6,6,6,6,6,6,6,6,6,6,6,6,6,6,6,6,6,6,0,6,6,6,6,6,6,6,6,6,0,6,0,0,0,0,0]} 1. d4 {[%emt 0:00:02]} d5 {[%emt 0:00:32]} 2. c4 {[%emt 0:00:09]} e6 {[%emt 0:00:20]} 3. Nc3 {[%emt 0:00:27]} Nf6 {[%emt 0:00:10]} 4. Bg5 {[%emt 0:01:02]} dxc4 {[%emt 0:00:59]} 5. e3 {[%emt 0:07:01]} c5 {[%emt 0:01:08]} 6. dxc5 {[%emt 0:02:39]} Qa5 {[%emt 0:12:09]} (6... Qxd1+ {simplifies} 7. Rxd1 Bxc5 8. Bxc4 a6) 7. Bxc4 {[%emt 0:12:03]} Qxc5 {[%emt 0:15:46]} 8. Bb5+ {[%emt 0:02:31] White is slightly better.} (8. Bxf6 {simplifies} gxf6 9. Qe2 Rg8 10. g3) 8... Nc6 {[%emt 0:04:17]} (8... Bd7 $5 9. Bxf6 gxf6 10. Bxd7+ Nxd7 $11) 9. Nf3 {[%emt 0:01:55]} Be7 {[%emt 0:06:20]} 10. O-O {[%emt 0:00:18]} O-O {[%emt 0:02:15]} 11. Rc1 {[%emt 0:00:59]} a6 {[%emt 0:04:15]} 12. Ba4 {[%emt 0:01:23][%cal Oc3e4]} Qa5 {[%emt 0:01:30]} (12... Rd8 $11 13. Qe2 Bd7) 13. Bxc6 $14 {[%emt 0:04:04]} bxc6 {[%emt 0:02:53]} 14. Qa4 {[%emt 0:01:32]} Qxa4 {[%emt 0:13:57]} 15. Nxa4 {[%emt 0:00:03][%cal Of3e5]} Bb7 {[%emt 0:02:56][%cal Oc6c5]} 16. Nc5 {[%emt 0:09:23] White is more active.} (16. Ne5 $16) 16... Bxc5 $1 $11 {[%emt 0:02:04] The position is equal.} 17. Rxc5 {[%emt 0:00:44]} Ne4 {[%emt 0:00:31]} 18. Rc2 {[%emt 0:06:47]} f6 {[%emt 0:01:59]} 19. Bf4 {[%emt 0:00:50]} c5 {[%emt 0:03:19]} 20. Bc7 {[%emt 0:01:43]} a5 {[%emt 0:07:29]} 21. Nd2 {[%emt 0:02:36]} Nxd2 {[%emt 0:01:05]} 22. Rxd2 {[%emt 0:00:00]} Rfc8 {[%emt 0:00:59]} 23. Bd6 {[%emt 0:05:13]} Bd5 {[%emt 0:02:32][%cal Oa8a6]} 24. a3 {[%emt 0:00:44]} Ra6 {[%emt 0:02:54]} 25. Bg3 {[%emt 0:01:23]} Rb6 {[%emt 0:02:06]} 26. f3 {[%emt 0:02:49]} Bb3 {[%emt 0:00:51]} 27. e4 {[%emt 0:01:42]} e5 {[%emt 0:01:33]} 28. Rc1 {[%emt 0:08:36]} a4 {[%emt 0:02:04]} 29. Be1 {[%emt 0:02:07]} Kf8 {[%emt 0:04:13]} 30. Rd3 {[%emt 0:01:19][%cal Oe1b4]} Be6 {[%emt 0:00:34]} 31. Bc3 {[%emt 0:01:15]} Ke7 {[%emt 0:00:55]} 32. Rcd1 {[%emt 0:01:18]} Rbb8 {[%emt 0:00:18]} 33. Kf2 {[%emt 0:05:08]} Rd8 {[%emt 0:00:16]} 34. Ke3 {[%emt 0:00:29]} Rxd3+ {[%emt 0:01:33]} 35. Rxd3 {[%emt 0:00:01][%mdl 4096] Endgame. KRB-KRB} g5 {[%emt 0:00:34]} 36. g3 {[%emt 0:01:20]} Bc4 {[%emt 0:00:37]} 37. Rd2 {[%emt 0:01:58]} Rd8 {[%emt 0:00:23]} 38. Rxd8 {[%emt 0:05:30]} Kxd8 {[%emt 0:00:01] KB-KB} 39. Ba5+ {[%emt 0:00:06]} Kd7 {[%emt 0:00:40]} 40. Bb6 {[%emt 0:00:06]} Kd6 {[%emt 0:00:16]} 41. f4 {[%emt 0:00:29]} gxf4+ {[%emt 0:01:00]} 42. gxf4 {[%emt 0:00:02]} exf4+ {[%emt 0:00:34]} 43. Kxf4 {[%emt 0:00:01]} Bf7 {[%emt 0:00:23]} 44. h4 {[%emt 0:01:29]} Bg6 {[%emt 0:00:12]} 45. Ba5 {[%emt 0:00:28]} Kd7 {[%emt 0:00:44]} 46. Ke3 {[%emt 0:02:42]} Ke6 {[%emt 0:00:37]} 47. Bc3 {[%emt 0:00:56]} Be8 {[%emt 0:00:33]} 48. Kf4 {[%emt 0:01:01]} Bg6 {[%emt 0:00:12]} 49. Be1 {[%emt 0:00:22]} h5 {[%emt 0:00:49]} 50. Bc3 {[%emt 0:01:44]} Ke7 {[%emt 0:00:39]} 51. Ba5 {[%emt 0:02:11]} Kd7 {[%emt 0:00:18]} 52. Bb6 {[%emt 0:00:08]} Kd6 {[%emt 0:00:16]} 53. Ba7 {[%emt 0:00:30]} Bh7 {[%emt 0:00:56]} 54. Ke3 {[%emt 0:00:25]} Bg6 {[%emt 0:00:23]} 55. Kd3 {[%emt 0:00:29]} Ke5 {[%emt 0:00:35]} 56. Bb8+ {[%emt 0:00:41]} Ke6 {[%emt 0:00:01]} 57. Bf4 {[%emt 0:00:19]} Bh7 {[%emt 0:00:24]} 58. Bc7 {[%emt 0:02:20]} Bg6 {[%emt 0:00:39]} 59. Ke3 {[%emt 0:00:47]} Kd7 {[%emt 0:00:33]} 60. Ba5 {[%emt 0:00:32]} Ke6 {[%emt 0:00:42]} 61. Bc3 {[%emt 0:00:02]} Be8 {[%emt 0:00:42]} 62. Kf4 {[%emt 0:00:27]} Bg6 {[%emt 0:00:15]} 63. Ba5 {[%emt 0:02:03]} Kd7 {[%emt 0:00:16]} 64. e5 {[%emt 0:00:27]} fxe5+ {[%emt 0:00:13]} 65. Kxe5 {[%emt 0:00:04]} Kc6 {[%emt 0:00:18]} 66. Bc3 {[%emt 0:00:22] Weighted Error Value: White=0.05 (flawless) /Black=0.04 (flawless) .  Mistake:       	White=1     	Black=1      Inaccurate:     	White=2     	Black=2      OK:         	White=24    	Black=26     Best:        	---       	Black=2      Strong:       	---       	Black=1} 1/2-1/2

[Event "Velammal AICF Women GM 2024"]
[Site "Chennai"]
[Date "2024.03.19"]
[Round "3.2"]
[White "Chitlange Sakshi"]
[Black "Velpula Sarayu"]
[Result "0-1"]
[ECO "E92"]
[WhiteElo "2175"]
[BlackElo "2389"]
[Annotator "RC"]
[PlyCount "94"]
[EventDate "2024.03.18"]
[EventType "tourn"]
[EventCountry "IND"]
[SourceTitle "playchess.com"]
[Source "ChessBase"]
[SourceQuality "1"]
[TimeControl "5400+30"]

1. d4 {[%emt 0:00:03]} Nf6 {[%emt 0:00:28]} 2. c4 {[%emt 0:00:05]} g6 {[%emt 0:00:26]} 3. Nc3 {[%emt 0:00:04]} Bg7 {[%emt 0:00:35]} 4. e4 {[%emt 0:00:06]} d6 {[%emt 0:00:28]} 5. Nf3 {[%emt 0:00:08]} O-O {[%emt 0:00:32]} 6. Be2 {[%emt 0:00:04]} e5 {[%emt 0:00:27]} 7. Be3 {[%emt 0:00:22]} Ng4 {[%emt 0:01:24]} 8. Bg5 {[%emt 0:00:32]} f6 {[%emt 0:00:17]} 9. Bh4 {[%emt 0:04:58]} Nc6 {[%emt 0:01:40]} 10. d5 {[%emt 0:03:01]} Ne7 {[%emt 0:01:06]} 11. h3 {[%emt 0:07:42]} Nh6 {[%emt 0:00:17]} 12. g4 {[%emt 0:00:29]} Nf7 {[%emt 0:19:14]} 13. Qc2 {[%emt 0:04:41]} c6 {[%emt 0:02:33]} 14. O-O-O {[%emt 0:03:35]} cxd5 {[%emt 0:01:21]} 15. cxd5 {[%emt 0:00:22]} Bd7 {[%emt 0:02:52]} 16. Kb1 {[%emt 0:01:11]} a6 {[%emt 0:04:39]} 17. Rc1 {[%emt 0:18:15]} b5 {[%emt 0:04:44]} 18. Nd1 {[%emt 0:02:03]} Rc8 {[%emt 0:09:35]} 19. Qd2 {[%emt 0:00:13]} Rxc1+ {[%emt 0:01:47]} 20. Qxc1 {[%emt 0:00:05]} Bh6 {[%emt 0:02:38]} 21. Ne3 {[%emt 0:01:19]} Kg7 {[%emt 0:00:15]} 22. Ne1 {[%emt 0:06:27]} Qb6 {[%emt 0:05:16]} 23. Qd2 {[%emt 0:06:37]} Rc8 {[%emt 0:06:26]} 24. Bd3 {[%emt 0:04:47]} b4 {[%emt 0:07:41]} 25. Qe2 {[%emt 0:03:42]} a5 {[%emt 0:04:25]} 26. Nc4 {[%emt 0:03:40]} Qc7 {[%emt 0:06:02]} 27. Ng2 {[%emt 0:01:16]} Nd8 {[%emt 0:02:14]} 28. f4 {[%emt 0:05:20]} exf4 {[%emt 0:02:27]} 29. e5 {[%emt 0:00:37]} Nxd5 {[%emt 0:01:44]} 30. exf6+ {[%emt 0:08:57]} Kf7 {[%emt 0:00:37]} 31. g5 {[%emt 0:02:49]} Bf8 {[%emt 0:00:07]} 32. Rc1 {[%emt 0:04:38]} Nc6 {[%emt 0:06:44]} 33. Qe4 {[%emt 0:03:25]} Be6 {[%emt 0:00:26]} 34. Nxf4 {[%emt 0:01:33]} Nxf4 {[%emt 0:00:04]} 35. Qxf4 {[%emt 0:00:03]} Qd8 {[%emt 0:00:40]} 36. Rd1 {[%emt 0:03:24]} Rc7 {[%emt 0:01:20]} 37. Bf2 {[%emt 0:00:15]} Rd7 {[%emt 0:01:04]} 38. h4 {[%emt 0:00:40]} Ne5 {[%emt 0:01:08]} 39. Be2 {[%emt 0:00:34]} Qc7 {[%emt 0:01:42]} 40. Nb6 {[%emt 0:01:23]} Rd8 {[%emt 0:00:25]} 41. Nd5 {[%emt 0:00:38]} Qb7 {[%emt 0:00:25]} 42. Ne3 {[%emt 0:00:26]} Rc8 {[%emt 0:00:49]} 43. h5 {[%emt 0:00:08]} Qc6 {[%emt 0:00:17]} 44. hxg6+ {[%emt 0:00:26]} hxg6 {[%emt 0:00:21]} 45. Nf1 {[%emt 0:00:58]} Qc2+ {[%emt 0:00:12]} 46. Ka1 {[%emt 0:00:03]} Qxe2 {[%emt 0:00:05]} 47. Qd4 {[%emt 0:00:38]} Qc4 {[%emt 0:00:16]} 0-1

[Event "Velammal AICF Women GM 2024"]
[Site "Chennai"]
[Date "2024.03.19"]
[Round "3.3"]
[White "Sedina, Elena"]
[Black "Rindhiya V"]
[Result "1-0"]
[ECO "C54"]
[WhiteElo "2161"]
[BlackElo "1953"]
[Annotator "RC"]
[PlyCount "55"]
[EventDate "2024.03.18"]
[EventType "tourn"]
[EventCountry "IND"]
[SourceTitle "playchess.com"]
[Source "ChessBase"]
[SourceQuality "1"]
[TimeControl "5400+30"]

1. e4 {[%emt 0:00:04]} e5 {[%emt 0:00:05]} 2. Nf3 {[%emt 0:00:08]} Nc6 {[%emt 0:00:03]} 3. Bc4 {[%emt 0:00:20]} Bc5 {[%emt 0:00:04]} 4. c3 {[%emt 0:04:05]} Nf6 {[%emt 0:00:11]} 5. d4 {[%emt 0:00:30]} exd4 {[%emt 0:00:08]} 6. e5 {[%emt 0:00:06]} d5 {[%emt 0:01:40]} 7. Bb5 {[%emt 0:00:57]} Ne4 {[%emt 0:00:14]} 8. cxd4 {[%emt 0:00:09]} Bb6 {[%emt 0:00:18]} 9. Nc3 {[%emt 0:01:50]} O-O {[%emt 0:00:54]} 10. Be3 {[%emt 0:01:29]} Bg4 {[%emt 0:14:38]} 11. h3 {[%emt 0:01:36]} Bxf3 {[%emt 0:04:43]} 12. gxf3 {[%emt 0:06:38]} Nxc3 {[%emt 0:00:45]} 13. bxc3 {[%emt 0:00:06]} Ne7 {[%emt 0:00:19]} 14. Bg5 {[%emt 0:49:36]} c6 {[%emt 0:21:16]} 15. Bd3 {[%emt 0:00:14]} c5 {[%emt 0:11:43]} 16. Rg1 {[%emt 0:01:52]} Qd7 {[%emt 0:00:56]} 17. f4 {[%emt 0:22:56]} cxd4 {[%emt 0:17:55]} 18. f5 {[%emt 0:01:01]} Rfe8 {[%emt 0:17:27]} 19. Bf6 {[%emt 0:00:35]} g6 {[%emt 0:04:34]} 20. Qh5 {[%emt 0:01:26]} Qc6 {[%emt 0:00:49]} 21. fxg6 {[%emt 0:00:41]} Qxc3+ {[%emt 0:01:35]} 22. Ke2 {[%emt 0:00:12]} Qb2+ {[%emt 0:00:38]} 23. Kf3 {[%emt 0:00:12]} fxg6 {[%emt 0:00:28]} 24. Bxg6 {[%emt 0:00:38]} Nxg6 {[%emt 0:00:36]} 25. Rxg6+ {[%emt 0:00:06]} Kf8 {[%emt 0:00:25]} 26. Qh6+ {[%emt 0:00:59]} Kf7 {[%emt 0:00:17]} 27. Qxh7+ {[%emt 0:00:59]} Ke6 {[%emt 0:00:01]} 28. Bh8+ {[%emt 0:00:20]} 1-0

[Event "Velammal AICF Women GM 2024"]
[Site "Chennai"]
[Date "2024.03.19"]
[Round "3.4"]
[White "Maisuradze, Nino"]
[Black "Uuriintuya, Uurtsaikh"]
[Result "0-1"]
[ECO "B38"]
[WhiteElo "2254"]
[BlackElo "2288"]
[Annotator "TA"]
[PlyCount "70"]
[EventDate "2024.03.18"]
[EventType "tourn"]
[EventCountry "IND"]
[SourceTitle "playchess.com"]
[Source "ChessBase"]
[SourceQuality "1"]
[TimeControl "5400+30"]

{[%evp 23,70,36,35,43,43,37,31,36,58,52,47,60,79,66,66,62,68,47,35,25,23,14,169,-3,0,0,0,0,144,-33,-35,-23,-28,-26,-37,-29,-42,-191,-144,-272,-255,-705,-687,-698,-664,-605,-605,-572,-558]} 1. e4 {[%emt 0:01:51]} c5 {[%emt 0:00:28]} 2. Nf3 {[%emt 0:00:11]} g6 {[%emt 0:00:39]} 3. d4 {[%emt 0:00:24]} cxd4 {[%emt 0:00:14]} 4. Nxd4 {[%emt 0:00:04]} Bg7 {[%emt 0:00:37]} 5. c4 {[%emt 0:00:32]} Nc6 {[%emt 0:00:51]} 6. Be3 {[%emt 0:00:17]} Nf6 {[%emt 0:00:55]} 7. Nc3 {[%emt 0:00:06]} O-O {[%emt 0:00:13]} 8. Be2 {[%emt 0:00:20]} d6 {[%emt 0:00:12]} 9. O-O {[%emt 0:00:27]} Bd7 {[%emt 0:01:11]} 10. Qd2 {[%emt 0:01:26]} Nxd4 {[%emt 0:00:46]} 11. Bxd4 {[%emt 0:00:11]} Bc6 {[%emt 0:00:06]} 12. Bd3 {[%emt 0:00:26]} a5 {[%emt 0:01:17]} 13. b3 {[%emt 0:01:40]} Nd7 {[%emt 0:01:54]} 14. Bxg7 {[%emt 0:00:19]} Kxg7 {[%emt 0:00:06]} 15. Rae1 {[%emt 0:00:19][%cal Ba1e1,Be1e3,Be3h3][%mdl 32] White is slightly better.} Kg8 {[%emt 0:02:58]} 16. Re3 {[%emt 0:01:17]} Qb6 {[%emt 0:06:02]} 17. Nd5 {[%emt 0:10:37]} Bxd5 {[%emt 0:03:24]} 18. exd5 {[%emt 0:00:05]} Rfe8 {[%emt 0:00:37]} 19. Rfe1 {[%emt 0:02:58]} Ne5 {[%emt 0:03:20]} 20. Bc2 {[%emt 0:12:51]} a4 {[%emt 0:15:37]} 21. Rh3 {[%emt 0:02:20] aiming for c5.} (21. bxa4 $2 Nxc4 22. Qd3 Nxe3 23. Rxe3 Qb2 $19) 21... axb3 {[%emt 0:08:07]} 22. axb3 {[%emt 0:07:02] Hoping for Qh6.} Ra2 $2 {[%emt 0:03:57] [#]} (22... h5 $11) 23. Rc1 $2 {[%emt 0:07:44]} ({White must play} 23. Qh6 $1 $18 {[%cal Rh6h7]} e6 (23... Rxc2 24. Qxh7+ Kf8 25. Qh8#) (23... Qxf2+ $2 24. Kxf2 Ng4+ 25. Kg1 $18) 24. Qxh7+ Kf8 25. Qh4 Rxc2 26. Qf6 Qxf2+ 27. Qxf2 Rxf2 28. Kxf2) 23... h5 {[%emt 0:06:45]} 24. Re3 {[%emt 0:13:44]} Rea8 {[%emt 0:02:08]} 25. h3 {[%emt 0:00:32]} Rb2 {[%emt 0:02:12] [#]} (25... Ra1 $1 $11 {remains equal.}) 26. f4 $2 {[%emt 0:05:23] [#]} (26. Qc3 $1 $16 {c5 is the strong threat.} Rba2 (26... Raa2 27. Bb1 $16) 27. c5) 26... Raa2 $1 $15 {[%emt 0:12:14]} 27. fxe5 {[%emt 0:26:53] [#]} Rxc2 $1 {[%emt 0:01:01]} 28. Rxc2 {[%emt 0:00:02]} Rxc2 {[%emt 0:00:08]} 29. Qd3 {[%emt 0:02:22]} dxe5 {[%emt 0:03:10]} 30. Qxc2 {[%emt 0:00:40]} (30. Kh2 $1 $15) 30... Qxe3+ $11 {[%emt 0:00:33] KQ-KQ} 31. Kh2 {[%emt 0:01:20]} (31. Qf2 $17 Qxb3 32. Qc5) 31... Qd4 {[%emt 0:05:47] ...e4 would now be deadly.} 32. b4 $2 {[%emt 0:00:18]} (32. Qc1) 32... e4 $19 {[%emt 0:01:04] Threatens to win with ...e3. Black is clearly winning.} 33. c5 {[%emt 0:01:39]} Qxd5 {[%emt 0:07:17] ( -> ...e3)} ({Weaker is} 33... Qxb4 34. c6 Qd6+ 35. Kh1 $11) 34. Kg1 {[%emt 0:00:37]} Qd4+ {[%emt 0:01:04]} 35. Kf1 {[%emt 0:00:10]} Qxb4 {[%emt 0:00:10] Weighted Error Value: White=0.53/Black=0.23 (precise) .  Missed win:     	White=1     	---        Mistake:       	White=4     	Black=2      OK:         	White=6     	Black=5      Best:        	White=1     	Black=3      Strong:       	---       	Black=1} 0-1

[Event "Velammal AICF Women GM 2024"]
[Site "Chennai"]
[Date "2024.03.19"]
[Round "3.5"]
[White "Gomes, Mary Ann"]
[Black "Enkhtuul, Altan-Ulzii"]
[Result "1/2-1/2"]
[ECO "A06"]
[WhiteElo "2322"]
[BlackElo "2195"]
[Annotator "TA"]
[PlyCount "60"]
[EventDate "2024.03.18"]
[EventType "tourn"]
[EventCountry "IND"]
[SourceTitle "playchess.com"]
[Source "ChessBase"]
[SourceQuality "1"]
[TimeControl "5400+30"]

{[%evp 9,60,10,12,0,3,0,0,-18,0,0,0,0,0,-40,-62,-61,-48,-32,-38,-27,-30,-56,-66,-64,-52,-60,-50,-52,-57,-64,-66,-40,-45,-66,-57,-40,0,0,16,0,16,-32,0,0,0,0,0,0,0,0,38,0,0]} 1. Nf3 {[%emt 0:00:11]} d5 {[%emt 0:00:05]} 2. b3 {[%emt 0:00:10]} Bg4 {[%emt 0:00:36]} 3. e3 {[%emt 0:01:22]} Nf6 {[%emt 0:00:24]} 4. Bb2 {[%emt 0:00:15]} Nbd7 {[%emt 0:00:26]} 5. d4 {[%emt 0:02:24]} e6 {[%emt 0:04:17]} 6. Nbd2 {[%emt 0:00:07]} Ne4 {[%emt 0:01:46]} 7. Nxe4 {[%emt 0:05:52]} dxe4 {[%emt 0:00:06]} 8. h3 $1 {[%emt 0:00:04]} Bh5 {[%emt 0:01:41]} 9. g4 $1 {[%emt 0:00:08]} Bg6 {[%emt 0:00:06]} 10. Nd2 {[%emt 0:01:19]} h5 {[%emt 0:04:04]} 11. gxh5 {[%emt 0:00:48]} Bxh5 {[%emt 0:01:07]} 12. Be2 {[%emt 0:00:35]} Qh4 {[%emt 0:01:43]} 13. Bxh5 {[%emt 0:07:49]} Rxh5 {[%emt 0:02:06][%cal Bh8h5,Bh5f5,Bf5f2][%mdl 32]} 14. Qe2 {[%emt 0:00:07]} Rf5 {[%emt 0:16:55]} 15. O-O-O {[%emt 0:02:20]} Rxf2 {[%emt 0:01:09]} 16. Qe1 {[%emt 0:00:07] [#] Rf1 would now be deadly.} Be7 {[%emt 0:00:35]} 17. Rg1 {[%emt 0:01:39]} g6 {[%emt 0:03:30][%cal Of2f5]} 18. Rg4 {[%emt 0:11:48]} ({Much worse is} 18. Nxe4 Rf3 19. Nc3 (19. Qxh4 Bxh4 20. Kd2 f5 $17) 19... Qxe1 (19... Qxh3 20. Nb5 $17) (19... Rxh3 20. Qf1 $17) 20. Rdxe1 c6 $17 (20... Rxh3 21. Nb5 $17)) 18... Qxh3 {[%emt 0:00:19] And now ...Rxd2 would win.} 19. Rxg6 {[%emt 0:00:08]} fxg6 {[%emt 0:14:57]} 20. Qxf2 {[%emt 0:00:06][%cal Od1g1]} Bg5 {[%emt 0:00:32]} 21. Nc4 {[%emt 0:14:56]} O-O-O {[%emt 0:02:57] Threatens to win with ...b5.} 22. Qg1 {[%emt 0:04:37]} Qf5 {[%emt 0:19:28]} 23. Rf1 {[%emt 0:03:00]} Qd5 {[%emt 0:00:03]} 24. Nd2 {[%emt 0:00:33]} Bh6 {[%emt 0:01:08]} 25. c4 {[%emt 0:01:36]} (25. Kb1 $1 $11) 25... Qg5 {[%emt 0:03:23]} 26. Qxg5 {[%emt 0:00:10]} Bxg5 {[%emt 0:00:01]} 27. Nxe4 {[%emt 0:01:11]} Bxe3+ {[%emt 0:00:05]} 28. Kc2 {[%emt 0:03:07]} g5 {[%emt 0:05:09]} 29. Rf7 {[%emt 0:03:02]} Nb6 {[%emt 0:04:34][%cal Og5g4]} 30. Re7 {[%emt 0:02:40]} Bxd4 {[%emt 0:02:40] Weighted Error Value: White=0.10 (very precise) /Black=0.09 (flawless) .  Mistake:       	White=1     	---        Inaccurate:     	White=3     	Black=3      OK:         	White=11    	Black=10     Best:        	White=2     	Black=1      Strong:       	White=2     	---} 1/2-1/2

[Event "Velammal AICF Women GM 2024"]
[Site "Chennai"]
[Date "2024.03.19"]
[Round "3.6"]
[White "Franco Valencia, Angela"]
[Black "Monnisha G K"]
[Result "1/2-1/2"]
[ECO "C54"]
[WhiteElo "2095"]
[BlackElo "2202"]
[Annotator "RC"]
[PlyCount "64"]
[EventDate "2024.03.18"]
[EventType "tourn"]
[EventCountry "IND"]
[SourceTitle "playchess.com"]
[Source "ChessBase"]
[SourceQuality "1"]
[TimeControl "5400+30"]

1. e4 {[%emt 0:01:14]} e5 {[%emt 0:00:08]} 2. Nf3 {[%emt 0:00:30]} Nc6 {[%emt 0:00:07]} 3. Bc4 {[%emt 0:00:38]} Nf6 {[%emt 0:00:07]} 4. d3 {[%emt 0:00:12]} Bc5 {[%emt 0:00:06]} 5. c3 {[%emt 0:00:23]} O-O {[%emt 0:00:16]} 6. Bg5 {[%emt 0:00:29]} Be7 {[%emt 0:00:56]} 7. Nbd2 {[%emt 0:01:27]} h6 {[%emt 0:01:36]} 8. Bh4 {[%emt 0:00:32]} a6 {[%emt 0:01:52]} 9. Bb3 {[%emt 0:00:20]} d6 {[%emt 0:00:15]} 10. O-O {[%emt 0:05:35]} Nh5 {[%emt 0:01:49]} 11. Bg3 {[%emt 0:01:20]} Nxg3 {[%emt 0:03:27]} 12. fxg3 {[%emt 0:06:24]} Na5 {[%emt 0:04:57]} 13. Bc2 {[%emt 0:03:15]} c5 {[%emt 0:10:04]} 14. Kh1 {[%emt 0:04:54]} b5 {[%emt 0:05:26]} 15. Qe2 {[%emt 0:06:10]} Be6 {[%emt 0:01:51]} 16. Rf2 {[%emt 0:02:43]} Rb8 {[%emt 0:03:57]} 17. Nf1 {[%emt 0:04:53]} b4 {[%emt 0:01:50]} 18. c4 {[%emt 0:01:54]} Nc6 {[%emt 0:02:33]} 19. Ne3 {[%emt 0:06:40]} Bg5 {[%emt 0:01:39]} 20. Nd5 {[%emt 0:04:51]} Bg4 {[%emt 0:11:42]} 21. Qf1 {[%emt 0:04:46]} Bxf3 {[%emt 0:04:45]} 22. Rxf3 {[%emt 0:01:54]} Nd4 {[%emt 0:02:17]} 23. Rf2 {[%emt 0:00:18]} Qd7 {[%emt 0:00:43]} 24. Bd1 {[%emt 0:05:34]} Bd8 {[%emt 0:10:17]} 25. Bh5 {[%emt 0:06:35]} Qe6 {[%emt 0:02:00]} 26. Ne3 {[%emt 0:02:54]} Bg5 {[%emt 0:03:02]} 27. Bg4 {[%emt 0:04:08]} Qe8 {[%emt 0:02:00]} 28. Nd5 {[%emt 0:01:29]} Rb7 {[%emt 0:01:36]} 29. h4 {[%emt 0:03:28]} Bd8 {[%emt 0:01:28]} 30. Qg1 {[%emt 0:04:16]} a5 {[%emt 0:03:04]} 31. Raf1 {[%emt 0:02:46]} Qa4 {[%emt 0:01:38]} 32. Ra1 {[%emt 0:03:41]} Qc6 {[%emt 0:02:28]} 1/2-1/2

[Event "Velammal AICF Women GM 2024"]
[Site "Chennai"]
[Date "2024.03.20"]
[Round "4.1"]
[White "Bommini Mounika Akshaya"]
[Black "Monnisha G K"]
[Result "1-0"]
[ECO "E44"]
[WhiteElo "2134"]
[BlackElo "2202"]
[Annotator "RC"]
[PlyCount "105"]
[EventDate "2024.03.18"]
[EventType "tourn"]
[EventCountry "IND"]
[SourceTitle "playchess.com"]
[Source "ChessBase"]
[SourceQuality "1"]
[TimeControl "5400+30"]

1. d4 {[%emt 0:01:16]} Nf6 {[%emt 0:00:20]} 2. c4 {[%emt 0:00:27]} e6 {[%emt 0:00:06]} 3. Nc3 {[%emt 0:00:04]} Bb4 {[%emt 0:00:04]} 4. e3 {[%emt 0:00:09]} b6 {[%emt 0:00:15]} 5. Nge2 {[%emt 0:00:17]} Bb7 {[%emt 0:00:50]} 6. a3 {[%emt 0:00:35]} Bxc3+ {[%emt 0:00:41]} 7. Nxc3 {[%emt 0:00:07]} O-O {[%emt 0:00:13]} 8. Bd3 {[%emt 0:03:01]} d6 {[%emt 0:00:51]} 9. O-O {[%emt 0:04:18]} Nbd7 {[%emt 0:00:30]} 10. e4 {[%emt 0:06:55]} e5 {[%emt 0:00:32]} 11. d5 {[%emt 0:01:35]} Re8 {[%emt 0:08:10]} 12. b4 {[%emt 0:04:42]} Nf8 {[%emt 0:05:38]} 13. Rb1 {[%emt 0:13:35]} Ng6 {[%emt 0:03:15]} 14. c5 {[%emt 0:09:19]} Bc8 {[%emt 0:02:40]} 15. Bb5 {[%emt 0:10:47]} Rf8 {[%emt 0:02:10]} 16. cxd6 {[%emt 0:05:40]} cxd6 {[%emt 0:00:36]} 17. Bd2 {[%emt 0:01:38]} Bg4 {[%emt 0:03:50]} 18. Be2 {[%emt 0:06:14]} Bd7 {[%emt 0:00:54]} 19. Rc1 {[%emt 0:01:27]} Rc8 {[%emt 0:02:11]} 20. Ba6 {[%emt 0:01:33]} Rb8 {[%emt 0:09:09]} 21. Qe2 {[%emt 0:06:04]} Bg4 {[%emt 0:08:10]} 22. f3 {[%emt 0:01:08]} Bd7 {[%emt 0:00:56]} 23. Nb5 {[%emt 0:05:11]} Nh5 {[%emt 0:08:02]} 24. g3 {[%emt 0:03:24]} f5 {[%emt 0:16:22]} 25. exf5 {[%emt 0:07:38]} Bxf5 {[%emt 0:01:05]} 26. Nxa7 {[%emt 0:02:36]} Ra8 {[%emt 0:01:13]} 27. Nc6 {[%emt 0:00:20]} Qf6 {[%emt 0:01:31]} 28. a4 {[%emt 0:02:28]} Bh3 {[%emt 0:06:43]} 29. Rf2 {[%emt 0:00:16]} e4 {[%emt 0:10:15]} 30. f4 {[%emt 0:00:27]} Rxa6 {[%emt 0:03:48]} 31. Qxa6 {[%emt 0:00:52]} Nh4 {[%emt 0:02:21]} 32. Qe2 {[%emt 0:01:52]} Nf3+ {[%emt 0:00:36]} 33. Rxf3 {[%emt 0:00:14]} exf3 {[%emt 0:00:37]} 34. Qxf3 {[%emt 0:00:23]} Qb2 {[%emt 0:01:07]} 35. Qc3 {[%emt 0:00:49]} Qxc3 {[%emt 0:01:34]} 36. Bxc3 {[%emt 0:00:01]} Re8 {[%emt 0:00:11]} 37. Kf2 {[%emt 0:00:29]} Bf5 {[%emt 0:00:52]} 38. Re1 {[%emt 0:00:55]} Kf7 {[%emt 0:00:19]} 39. Rxe8 {[%emt 0:00:15]} Kxe8 {[%emt 0:00:01]} 40. Ke3 {[%emt 0:00:33]} Kd7 {[%emt 0:00:11]} 41. Bd4 {[%emt 0:00:49]} Bc2 {[%emt 0:00:14]} 42. a5 {[%emt 0:00:31]} bxa5 {[%emt 0:00:13]} 43. bxa5 {[%emt 0:00:28]} Bb3 {[%emt 0:00:12]} 44. Nb4 {[%emt 0:00:16]} Kc7 {[%emt 0:00:18]} 45. Ke4 {[%emt 0:00:38]} Bd1 {[%emt 0:00:47]} 46. Kf5 {[%emt 0:00:29]} Be2 {[%emt 0:00:33]} 47. Ke6 {[%emt 0:00:40]} Bg4+ {[%emt 0:00:17]} 48. Ke7 {[%emt 0:00:13]} Bc8 {[%emt 0:00:46]} 49. Kf7 {[%emt 0:00:24]} g6 {[%emt 0:00:08]} 50. Ke7 {[%emt 0:00:22]} Bg4 {[%emt 0:00:09]} 51. a6 {[%emt 0:00:47]} Bc8 {[%emt 0:00:24]} 52. a7 {[%emt 0:00:18]} Bb7 {[%emt 0:00:03]} 53. Na6+ {[%emt 0:00:41]} 1-0